[Event "The Kvibergspelen 2023"]
[Site "Kviberg Park Hotel & Conference, Krutvagen 2, Gothenburg, Sweden"]
[Date "2023.09.15"]
[Round "2.8"]
[White "Jarlskov, Daniel Tuk Hartso"]
[Black "Ramsdal, Jens Albert"]
[Result "1/2-1/2"]
[TimeControl "15 minutes + 5 seconds per move from move one (Round 1 - 4) / 90 minutes + 30 seconds per move from move one (Round 5 - 8)"]
[BlackTitle "FM"]
[WhiteFideId "1463896"]
[BlackFideId "1429221"]
[WhiteElo "2038"]
[BlackElo "2391"]

1. c4 {[%clk 00:15:08]} {[%emt 00:00:02]} b6 {[%clk 00:15:09]} {[%emt
00:00:01]} 2. Nf3 {[%clk 00:15:11]} {[%emt 00:00:01]} Bb7 {[%clk 00:15:11]}
{[%emt 00:00:04]} 3. g3 {[%clk 00:15:14]} {[%emt 00:00:01]} Bxf3 {[%clk
00:15:01]} {[%emt 00:00:14]} 4. exf3 {[%clk 00:15:18]} {[%emt 00:00:01]} e6
{[%clk 00:14:59]} {[%emt 00:00:08]} 5. Bg2 {[%clk 00:14:55]} {[%emt 00:00:27]}
Nf6 {[%clk 00:14:55]} {[%emt 00:00:10]} 6. d4 {[%clk 00:14:53]} {[%emt
00:00:06]} Bb4+ {[%clk 00:14:30]} {[%emt 00:00:30]} 7. Bd2 {[%clk 00:14:50]}
{[%emt 00:00:09]} Bxd2+ {[%clk 00:14:33]} 8. Qxd2 {[%clk 00:14:35]} {[%emt
00:00:20]} O-O {[%clk 00:14:19]} {[%emt 00:00:19]} 9. O-O {[%clk 00:14:38]}
{[%emt 00:00:02]} d5 {[%clk 00:14:17]} {[%emt 00:00:08]} 10. b3 {[%clk
00:14:21]} {[%emt 00:00:21]} Nbd7 {[%clk 00:14:13]} {[%emt 00:00:10]} 11. Nc3
{[%clk 00:14:00]} {[%emt 00:00:25]} c6 {[%clk 00:10:58]} {[%emt 00:03:20]} 12.
Rac1 {[%clk 00:13:24]} {[%emt 00:00:42]} dxc4 {[%clk 00:10:39]} {[%emt
00:00:24]} 13. bxc4 {[%clk 00:13:28]} {[%emt 00:00:01]} Qe7 {[%clk 00:10:22]}
{[%emt 00:00:22]} 14. Rfe1 {[%clk 00:10:48]} {[%emt 00:02:44]} Rac8 {[%clk
00:10:23]} {[%emt 00:00:04]} 15. d5 {[%clk 00:10:03]} {[%emt 00:00:50]} cxd5
{[%clk 00:10:09]} {[%emt 00:00:19]} 16. cxd5 {[%clk 00:09:20]} {[%emt
00:00:48]} Qd6 {[%clk 00:09:57]} {[%emt 00:00:17]} 17. Rcd1 {[%clk 00:09:10]}
{[%emt 00:00:15]} exd5 {[%clk 00:08:43]} {[%emt 00:01:19]} 18. Nxd5 {[%clk
00:09:12]} {[%emt 00:00:03]} Qxd5 {[%clk 00:08:36]} {[%emt 00:00:12]} 19. Qxd5
{[%clk 00:09:15]} {[%emt 00:00:02]} Nxd5 {[%clk 00:08:40]} {[%emt 00:00:01]} 20.
Rxd5 {[%clk 00:09:19]} {[%emt 00:00:01]} Nf6 {[%clk 00:08:02]} {[%emt
00:00:43]} 21. Rde5 {[%clk 00:07:53]} {[%emt 00:01:31]} Rfe8 {[%clk 00:07:48]}
{[%emt 00:00:18]} 22. Rxe8+ {[%clk 00:06:43]} {[%emt 00:01:16]} Rxe8 {[%clk
00:07:52]} {[%emt 00:00:01]} 23. Rxe8+ {[%clk 00:06:47]} {[%emt 00:00:02]} Nxe8
{[%clk 00:07:56]} 24. Kf1 {[%clk 00:06:51]} {[%emt 00:00:01]} Kf8 {[%clk
00:08:00]} {[%emt 00:00:01]} 25. Ke2 {[%clk 00:06:55]} {[%emt 00:00:01]} Ke7
{[%clk 00:08:04]} 26. Kd3 {[%clk 00:06:59]} {[%emt 00:00:01]} Kd6 {[%clk
00:08:05]} {[%emt 00:00:04]} 27. Kc4 {[%clk 00:06:54]} {[%emt 00:00:11]} Nc7
{[%clk 00:08:01]} {[%emt 00:00:08]} 28. f4 {[%clk 00:06:50]} {[%emt 00:00:09]}
f6 {[%clk 00:07:37]} {[%emt 00:00:29]} 29. Be4 {[%clk 00:06:47]} {[%emt
00:00:08]} h6 {[%clk 00:07:40]} {[%emt 00:00:02]} 30. h4 {[%clk 00:06:35]}
{[%emt 00:00:18]} Ne6 {[%clk 00:07:43]} {[%emt 00:00:02]} 31. Bg2 {[%clk
00:06:05]} {[%emt 00:00:34]} Nc5 {[%clk 00:07:45]} {[%emt 00:00:04]} 32. Bf3
{[%clk 00:06:08]} {[%emt 00:00:02]} a6 {[%clk 00:07:22]} {[%emt 00:00:28]} 33.
Bg2 {[%clk 00:05:50]} {[%emt 00:00:23]} b5+ {[%clk 00:07:25]} {[%emt 00:00:02]}
34. Kd4 {[%clk 00:05:53]} {[%emt 00:00:01]} Ne6+ {[%clk 00:07:20]} {[%emt
00:00:10]} 35. Ke4 {[%clk 00:05:39]} {[%emt 00:00:19]} a5 {[%clk 00:07:11]}
{[%emt 00:00:15]} 36. Bf1 {[%clk 00:05:25]} {[%emt 00:00:19]} Kc5 {[%clk
00:06:25]} {[%emt 00:00:51]} 37. Kf5 {[%clk 00:05:28]} {[%emt 00:00:02]} Nf8
{[%clk 00:06:29]} {[%emt 00:00:01]} 38. g4 {[%clk 00:02:55]} {[%emt 00:02:37]}
a4 {[%clk 00:06:27]} {[%emt 00:00:08]} 39. g5 {[%clk 00:02:59]} {[%emt
00:00:01]} fxg5 {[%clk 00:06:20]} {[%emt 00:00:11]} 40. fxg5 {[%clk 00:03:03]}
{[%emt 00:00:01]} hxg5 {[%clk 00:06:22]} {[%emt 00:00:04]} 41. Kxg5 {[%clk
00:03:07]} {[%emt 00:00:01]} b4 {[%clk 00:05:50]} {[%emt 00:00:36]} 42. Bd3
{[%clk 00:02:54]} {[%emt 00:00:18]} Kd4 {[%clk 00:03:07]} {[%emt 00:02:49]} 43.
Bc2 {[%clk 00:02:58]} {[%emt 00:00:01]} b3 {[%clk 00:03:11]} 44. Bxb3 {[%clk
00:03:02]} {[%emt 00:00:01]} axb3 {[%clk 00:03:10]} {[%emt 00:00:05]} 45. axb3
{[%clk 00:03:06]} {[%emt 00:00:02]} Ke5 {[%emt 00:00:08]} 1/2-1/2

[Event "The Kvibergspelen 2023"]
[Site "Kviberg Park Hotel & Conference, Krutvagen 2, Gothenburg, Sweden"]
[Date "2023.09.15"]
[Round "2.9"]
[White "Thorn, Eric"]
[Black "Frank, Anton"]
[Result "1-0"]
[TimeControl "15 minutes + 5 seconds per move from move one (Round 1 - 4) / 90 minutes + 30 seconds per move from move one (Round 5 - 8)"]
[WhiteTitle "FM"]
[WhiteFideId "1710729"]
[BlackFideId "1752383"]
[WhiteElo "2390"]
[BlackElo "2018"]

1. d4 {[%clk 00:15:07]} {[%emt 00:00:03]} d5 {[%clk 00:15:09]} {[%emt
00:00:01]} 2. c4 {[%clk 00:15:09]} {[%emt 00:00:04]} e6 {[%clk 00:15:12]} 3.
Nc3 {[%clk 00:15:12]} {[%emt 00:00:01]} a6 {[%clk 00:15:16]} {[%emt 00:00:01]}
4. cxd5 {[%clk 00:15:10]} {[%emt 00:00:07]} exd5 {[%clk 00:15:20]} {[%emt
00:00:02]} 5. Qb3 {[%clk 00:15:03]} {[%emt 00:00:12]} c5 {[%clk 00:15:14]}
{[%emt 00:00:11]} 6. Nxd5 {[%clk 00:13:51]} {[%emt 00:01:17]} Be6 {[%clk
00:10:35]} {[%emt 00:04:43]} 7. e4 {[%clk 00:13:49]} {[%emt 00:00:08]} Nc6
{[%clk 00:10:30]} {[%emt 00:00:10]} 8. Nf3 {[%clk 00:12:47]} {[%emt 00:01:08]}
Nge7 {[%clk 00:05:07]} {[%emt 00:05:27]} 9. Bg5 {[%clk 00:10:48]} {[%emt
00:02:03]} Bxd5 {[%clk 00:04:29]} {[%emt 00:00:43]} 10. exd5 {[%clk 00:10:50]}
{[%emt 00:00:05]} Qxd5 {[%clk 00:04:31]} 11. Bc4 {[%clk 00:10:42]} {[%emt
00:00:13]} Qe4+ {[%clk 00:03:57]} {[%emt 00:00:39]} 12. Kf1 {[%clk 00:10:44]}
{[%emt 00:00:03]} O-O-O {[%clk 00:03:37]} {[%emt 00:00:26]} 13. Re1 {[%clk
00:09:10]} {[%emt 00:01:39]} Qf5 {[%clk 00:03:13]} {[%emt 00:00:28]} 14. Bxf7
{[%clk 00:07:57]} {[%emt 00:01:18]} Kb8 {[%clk 00:02:55]} {[%emt 00:00:23]} 15.
Be6 {[%clk 00:07:09]} {[%emt 00:00:54]} Qg6 {[%clk 00:02:47]} {[%emt 00:00:12]}
16. d5 {[%clk 00:05:08]} {[%emt 00:02:07]} Nb4 {[%clk 00:02:08]} {[%emt
00:00:43]} 17. d6 {[%clk 00:03:06]} {[%emt 00:02:07]} Rxd6 {[%clk 00:01:45]}
{[%emt 00:00:28]} 18. Bf4 {[%clk 00:02:48]} {[%emt 00:00:24]} Nc8 {[%clk
00:01:30]} {[%emt 00:00:19]} 19. a3 {[%clk 00:01:44]} {[%emt 00:01:09]} Nd3
{[%clk 00:00:59]} {[%emt 00:00:36]} 20. Bd5 {[%clk 00:01:17]} {[%emt 00:00:32]}
b5 {[%clk 00:00:15]} {[%emt 00:00:50]} 21. Be4 {[%clk 00:01:18]} {[%emt
00:00:03]} c4 {[%clk 00:00:12]} {[%emt 00:00:09]} 22. Bxg6 {[%clk 00:01:16]}
{[%emt 00:00:06]} cxb3 {[%clk 00:00:16]} {[%emt 00:00:02]} 23. Bxd3 {[%clk
00:01:19]} {[%emt 00:00:02]} Ka7 {[%clk 00:00:15]} {[%emt 00:00:06]} 24. Bxd6
{[%clk 00:01:00]} {[%emt 00:00:24]} Bxd6 {[%clk 00:00:19]} {[%emt 00:00:01]} 25.
Nd4 {[%clk 00:00:38]} {[%emt 00:00:27]} Kb6 {[%clk 00:00:16]} {[%emt 00:00:08]}
26. Nxb3 {[%clk 00:00:40]} {[%emt 00:00:02]} Ne7 {[%clk 00:00:17]} {[%emt
00:00:04]} 27. Re6 {[%clk 00:00:36]} {[%emt 00:00:10]} Kc7 {[%clk 00:00:19]}
{[%emt 00:00:02]} 28. Ke2 {[%clk 00:00:29]} {[%emt 00:00:12]} Nd5 {[%clk
00:00:21]} {[%emt 00:00:03]} 29. g3 {[%clk 00:00:22]} {[%emt 00:00:13]} Rf8
{[%clk 00:00:18]} {[%emt 00:00:08]} 30. Rd1 {[%clk 00:00:16]} {[%emt 00:00:10]}
Nf6 {[%clk 00:00:15]} {[%emt 00:00:08]} 31. Rc1+ {[%clk 00:00:14]} {[%emt
00:00:07]} Kd7 {[%clk 00:00:18]} {[%emt 00:00:02]} 32. Bf5 {[%clk 00:00:17]}
{[%emt 00:00:01]} Nd5 {[%clk 00:00:15]} {[%emt 00:00:09]} 33. Rf6+ {[%clk
00:00:14]} {[%emt 00:00:09]} Ke7 {[%clk 00:00:18]} {[%emt 00:00:02]} 34. Rxf8
{[%clk 00:00:17]} {[%emt 00:00:02]} Kxf8 {[%clk 00:00:22]} {[%emt 00:00:01]} 35.
Rd1 {[%clk 00:00:21]} {[%emt 00:00:02]} 1-0

[Event "The Kvibergspelen 2023"]
[Site "Kviberg Park Hotel & Conference, Krutvagen 2, Gothenburg, Sweden"]
[Date "2023.09.15"]
[Round "2.10"]
[White "Kallen, Jonas"]
[Black "Olsson, William"]
[Result "0-1"]
[TimeControl "15 minutes + 5 seconds per move from move one (Round 1 - 4) / 90 minutes + 30 seconds per move from move one (Round 5 - 8)"]
[BlackTitle "FM"]
[WhiteFideId "1712896"]
[BlackFideId "1741721"]
[WhiteElo "2020"]
[BlackElo "2376"]

1. e4 {[%clk 00:15:08]} {[%emt 00:00:02]} c5 {[%clk 00:15:08]} {[%emt
00:00:03]} 2. Nf3 {[%clk 00:15:11]} {[%emt 00:00:04]} d6 {[%clk 00:15:12]} 3.
d4 {[%clk 00:15:15]} cxd4 {[%clk 00:15:16]} 4. Nxd4 {[%clk 00:15:18]} {[%emt
00:00:01]} Nf6 {[%clk 00:15:20]} {[%emt 00:00:01]} 5. Nc3 {[%clk 00:15:22]}
{[%emt 00:00:01]} g6 {[%clk 00:15:24]} {[%emt 00:00:01]} 6. Be2 {[%clk
00:15:21]} {[%emt 00:00:07]} Bg7 {[%clk 00:15:28]} {[%emt 00:00:01]} 7. O-O
{[%clk 00:15:23]} {[%emt 00:00:03]} O-O {[%clk 00:15:29]} {[%emt 00:00:03]} 8.
Be3 {[%clk 00:15:17]} {[%emt 00:00:10]} a6 {[%clk 00:15:27]} {[%emt 00:00:08]}
9. a4 {[%clk 00:14:58]} {[%emt 00:00:25]} Nc6 {[%clk 00:15:28]} {[%emt
00:00:03]} 10. Nb3 {[%clk 00:14:52]} {[%emt 00:00:12]} b6 {[%clk 00:14:57]}
{[%emt 00:00:36]} 11. f3 {[%clk 00:14:42]} {[%emt 00:00:14]} Nd7 {[%clk
00:14:31]} {[%emt 00:00:31]} 12. Qd2 {[%clk 00:14:24]} {[%emt 00:00:24]} Re8
{[%clk 00:14:24]} {[%emt 00:00:11]} 13. a5 {[%clk 00:13:41]} {[%emt 00:00:48]}
b5 {[%clk 00:14:02]} {[%emt 00:00:27]} 14. Ra2 {[%clk 00:13:05]} {[%emt
00:00:41]} Bb7 {[%clk 00:13:54]} {[%emt 00:00:13]} 15. Nd5 {[%clk 00:13:04]}
{[%emt 00:00:06]} Rc8 {[%clk 00:13:47]} {[%emt 00:00:11]} 16. c3 {[%clk
00:12:56]} {[%emt 00:00:14]} Nce5 {[%clk 00:13:32]} {[%emt 00:00:19]} 17. Nb6
{[%clk 00:12:34]} {[%emt 00:00:28]} Nxb6 {[%clk 00:13:06]} {[%emt 00:00:31]} 18.
Bxb6 {[%clk 00:12:37]} {[%emt 00:00:01]} Qd7 {[%clk 00:12:58]} {[%emt
00:00:13]} 19. Nd4 {[%clk 00:12:28]} {[%emt 00:00:14]} d5 {[%clk 00:12:39]}
{[%emt 00:00:24]} 20. f4 {[%clk 00:12:16]} {[%emt 00:00:18]} Nc4 {[%clk
00:12:08]} {[%emt 00:00:36]} 21. Bxc4 {[%clk 00:12:19]} {[%emt 00:00:02]} dxc4
{[%clk 00:12:11]} {[%emt 00:00:02]} 22. Qe2 {[%clk 00:12:05]} {[%emt 00:00:18]}
e5 {[%clk 00:12:03]} {[%emt 00:00:14]} 23. fxe5 {[%clk 00:11:10]} {[%emt
00:01:01]} Rxe5 {[%clk 00:12:06]} 24. Raa1 {[%clk 00:09:47]} {[%emt 00:01:28]}
Rxe4 {[%clk 00:12:09]} {[%emt 00:00:01]} 25. Qf2 {[%clk 00:09:51]} {[%emt
00:00:02]} Rce8 {[%clk 00:10:33]} {[%emt 00:01:41]} 26. Rae1 {[%clk 00:09:50]}
{[%emt 00:00:06]} f5 {[%clk 00:10:10]} {[%emt 00:00:27]} 27. Rxe4 {[%clk
00:09:16]} {[%emt 00:00:40]} Rxe4 {[%clk 00:10:13]} {[%emt 00:00:01]} 28. Re1
{[%clk 00:09:09]} {[%emt 00:00:13]} Qe8 {[%clk 00:09:52]} {[%emt 00:00:24]} 29.
Rxe4 {[%clk 00:08:20]} {[%emt 00:00:56]} Qxe4 {[%clk 00:09:53]} {[%emt
00:00:04]} 30. Nf3 {[%clk 00:07:54]} {[%emt 00:00:31]} b4 {[%clk 00:07:45]}
{[%emt 00:02:12]} 31. Qd2 {[%clk 00:07:06]} {[%emt 00:00:53]} Qd3 {[%clk
00:06:36]} {[%emt 00:01:15]} 32. Qe1 {[%clk 00:04:38]} {[%emt 00:02:32]} Be4
{[%clk 00:05:47]} {[%emt 00:00:54]} 33. Bd4 {[%clk 00:04:23]} {[%emt 00:00:21]}
Bxd4+ {[%clk 00:03:07]} {[%emt 00:02:45]} 34. Nxd4 {[%clk 00:04:12]} {[%emt
00:00:17]} Kg7 {[%clk 00:02:14]} {[%emt 00:00:54]} 35. h3 {[%clk 00:03:34]}
{[%emt 00:00:45]} bxc3 {[%clk 00:02:05]} {[%emt 00:00:14]} 36. Qxc3 {[%clk
00:03:12]} {[%emt 00:00:28]} Kf6 {[%clk 00:01:39]} {[%emt 00:00:31]} 37. Kf2
{[%clk 00:02:44]} {[%emt 00:00:33]} Qxc3 {[%clk 00:01:36]} {[%emt 00:00:07]} 38.
bxc3 {[%clk 00:02:47]} {[%emt 00:00:03]} f4 {[%clk 00:01:22]} {[%emt 00:00:19]}
39. g3 {[%clk 00:02:47]} {[%emt 00:00:05]} g5 {[%clk 00:01:11]} {[%emt
00:00:15]} 40. gxf4 {[%clk 00:02:46]} {[%emt 00:00:06]} gxf4 {[%clk 00:01:14]}
{[%emt 00:00:02]} 41. h4 {[%clk 00:02:49]} {[%emt 00:00:02]} Ke5 {[%clk
00:01:07]} {[%emt 00:00:13]} 42. Ke2 {[%clk 00:02:48]} {[%emt 00:00:06]} Bd5
{[%clk 00:00:15]} {[%emt 00:00:57]} 43. Nc2 {[%clk 00:02:07]} {[%emt 00:00:46]}
Kf5 {[%clk 00:00:15]} {[%emt 00:00:04]} 44. Kf2 {[%clk 00:00:16]} {[%emt
00:01:57]} Kg4 {[%clk 00:00:19]} {[%emt 00:00:01]} 45. Nd4 {[%clk 00:00:16]}
{[%emt 00:00:05]} Kxh4 {[%clk 00:00:17]} {[%emt 00:00:07]} 46. Nf5+ {[%clk
00:00:13]} {[%emt 00:00:08]} Kg5 {[%clk 00:00:19]} {[%emt 00:00:02]} 47. Ne7
{[%clk 00:00:14]} {[%emt 00:00:04]} Bb7 {[%clk 00:00:21]} 0-1

[Event "The Kvibergspelen 2023"]
[Site "Kviberg Park Hotel & Conference, Krutvagen 2, Gothenburg, Sweden"]
[Date "2023.09.15"]
[Round "2.11"]
[White "Reimanis, Ritvars"]
[Black "Persson, Sebastian"]
[Result "1-0"]
[TimeControl "15 minutes + 5 seconds per move from move one (Round 1 - 4) / 90 minutes + 30 seconds per move from move one (Round 5 - 8)"]
[WhiteTitle "IM"]
[WhiteFideId "11602988"]
[BlackFideId "1764187"]
[WhiteElo "2361"]
[BlackElo "1992"]

1. d4 {[%clk 00:15:06]} {[%emt 00:00:04]} d5 {[%clk 00:15:08]} {[%emt
00:00:04]} 2. Nf3 {[%clk 00:15:09]} Nf6 {[%clk 00:15:11]} {[%emt 00:00:01]} 3.
c4 {[%clk 00:15:12]} {[%emt 00:00:02]} c6 {[%clk 00:15:15]} {[%emt 00:00:01]} 4.
e3 {[%clk 00:15:07]} {[%emt 00:00:10]} e6 {[%clk 00:15:07]} {[%emt 00:00:13]} 5.
Nc3 {[%clk 00:15:01]} {[%emt 00:00:11]} Nbd7 {[%clk 00:15:08]} {[%emt
00:00:03]} 6. Qc2 {[%clk 00:14:28]} {[%emt 00:00:39]} Be7 {[%clk 00:14:58]}
{[%emt 00:00:15]} 7. g4 {[%clk 00:13:55]} {[%emt 00:00:39]} h6 {[%clk
00:13:50]} {[%emt 00:01:12]} 8. Rg1 {[%clk 00:13:53]} {[%emt 00:00:07]} g5
{[%clk 00:13:35]} {[%emt 00:00:20]} 9. b3 {[%clk 00:13:45]} {[%emt 00:00:14]}
Qa5 {[%clk 00:11:01]} {[%emt 00:02:38]} 10. Bd2 {[%clk 00:13:45]} {[%emt
00:00:06]} Qa3 {[%clk 00:10:39]} {[%emt 00:00:25]} 11. c5 {[%clk 00:13:38]}
{[%emt 00:00:13]} b5 {[%clk 00:09:34]} {[%emt 00:01:11]} 12. Bxb5 {[%clk
00:13:07]} {[%emt 00:00:36]} Qb4 {[%clk 00:04:13]} {[%emt 00:05:26]} 13. Bxc6
{[%clk 00:11:45]} {[%emt 00:01:26]} Qb8 {[%clk 00:04:13]} {[%emt 00:00:05]} 14.
Bxa8 {[%clk 00:11:29]} {[%emt 00:00:22]} Qxa8 {[%clk 00:04:16]} {[%emt
00:00:02]} 15. b4 {[%clk 00:11:33]} {[%emt 00:00:02]} Qb8 {[%clk 00:04:00]}
{[%emt 00:00:20]} 16. Rb1 {[%clk 00:11:09]} {[%emt 00:00:28]} Kf8 {[%clk
00:03:23]} {[%emt 00:00:42]} 17. b5 {[%clk 00:10:41]} {[%emt 00:00:34]} e5
{[%clk 00:02:37]} {[%emt 00:00:50]} 18. c6 {[%clk 00:10:30]} {[%emt 00:00:16]}
Nb6 {[%clk 00:02:41]} {[%emt 00:00:01]} 19. Nxe5 {[%clk 00:10:27]} {[%emt
00:00:09]} Bd6 {[%clk 00:02:43]} {[%emt 00:00:02]} 20. f4 {[%clk 00:10:23]}
{[%emt 00:00:10]} Bxe5 {[%clk 00:01:47]} {[%emt 00:01:00]} 21. fxe5 {[%clk
00:09:17]} {[%emt 00:01:12]} Nxg4 {[%clk 00:01:23]} {[%emt 00:00:29]} 22. Qd1
{[%clk 00:08:58]} {[%emt 00:00:24]} h5 {[%clk 00:01:13]} {[%emt 00:00:14]} 23.
h3 {[%clk 00:08:55]} {[%emt 00:00:08]} Nh6 {[%clk 00:01:15]} {[%emt 00:00:04]}
24. Qxh5 {[%clk 00:08:42]} {[%emt 00:00:18]} Bf5 {[%clk 00:01:02]} {[%emt
00:00:16]} 25. Qxg5 {[%clk 00:07:30]} {[%emt 00:01:18]} Bxb1 {[%clk 00:00:07]}
{[%emt 00:01:00]} 26. Nxb1 {[%clk 00:07:33]} {[%emt 00:00:02]} Qc8 {[%clk
00:00:08]} {[%emt 00:00:05]} 27. Bb4+ {[%clk 00:07:30]} {[%emt 00:00:07]} 1-0

[Event "The Kvibergspelen 2023"]
[Site "Kviberg Park Hotel & Conference, Krutvagen 2, Gothenburg, Sweden"]
[Date "2023.09.15"]
[Round "2.13"]
[White "Bengtsson, Siv"]
[Black "Kistrup, Nicolai"]
[Result "0-1"]
[TimeControl "15 minutes + 5 seconds per move from move one (Round 1 - 4) / 90 minutes + 30 seconds per move from move one (Round 5 - 8)"]
[BlackTitle "FM"]
[WhiteFideId "1701673"]
[BlackFideId "1444816"]
[WhiteElo "1995"]
[BlackElo "2359"]

1. e4 {[%clk 00:15:08]} c5 {[%clk 00:15:09]} {[%emt 00:00:01]} 2. Nf3 {[%clk
00:15:12]} {[%emt 00:00:01]} d6 {[%clk 00:15:13]} {[%emt 00:00:05]} 3. d4
{[%clk 00:15:16]} cxd4 {[%clk 00:15:17]} 4. Nxd4 {[%clk 00:15:19]} Nf6 {[%clk
00:15:21]} {[%emt 00:00:01]} 5. Nc3 {[%clk 00:15:22]} Nc6 {[%clk 00:15:25]}
{[%emt 00:00:01]} 6. Bg5 {[%clk 00:15:18]} {[%emt 00:00:08]} e6 {[%clk
00:15:28]} {[%emt 00:00:02]} 7. Qd2 {[%clk 00:15:08]} {[%emt 00:00:15]} a6
{[%clk 00:15:32]} {[%emt 00:00:01]} 8. f3 {[%clk 00:14:58]} {[%emt 00:00:14]}
Bd7 {[%clk 00:14:45]} {[%emt 00:00:52]} 9. O-O-O {[%clk 00:14:12]} {[%emt
00:00:52]} Nxd4 {[%clk 00:14:47]} {[%emt 00:00:02]} 10. Qxd4 {[%clk 00:14:13]}
{[%emt 00:00:03]} Be7 {[%clk 00:14:44]} {[%emt 00:00:10]} 11. h4 {[%clk
00:13:38]} {[%emt 00:00:39]} Qc7 {[%clk 00:14:41]} {[%emt 00:00:08]} 12. Kb1
{[%clk 00:13:10]} {[%emt 00:00:32]} b5 {[%clk 00:14:40]} {[%emt 00:00:08]} 13.
Qd2 {[%clk 00:12:32]} {[%emt 00:00:42]} h6 {[%clk 00:14:34]} {[%emt 00:00:12]}
14. Be3 {[%clk 00:12:33]} {[%emt 00:00:03]} h5 {[%clk 00:14:37]} {[%emt
00:00:02]} 15. Bg5 {[%clk 00:11:31]} {[%emt 00:01:06]} Qb6 {[%clk 00:14:34]}
{[%emt 00:00:10]} 16. e5 {[%clk 00:09:46]} {[%emt 00:01:49]} b4 {[%clk
00:13:53]} {[%emt 00:00:46]} 17. Ne2 {[%clk 00:05:55]} {[%emt 00:03:55]} Nd5
{[%clk 00:13:44]} {[%emt 00:00:15]} 18. Bxe7 {[%clk 00:05:46]} {[%emt
00:00:13]} Kxe7 {[%clk 00:12:01]} {[%emt 00:01:50]} 19. exd6+ {[%clk 00:04:36]}
{[%emt 00:01:14]} Qxd6 {[%clk 00:11:46]} {[%emt 00:00:21]} 20. g4 {[%clk
00:03:27]} {[%emt 00:01:13]} Qe5 {[%clk 00:08:34]} {[%emt 00:03:17]} 21. f4
{[%clk 00:01:38]} {[%emt 00:01:53]} Qe3 {[%clk 00:07:44]} {[%emt 00:00:57]} 22.
Bg2 {[%clk 00:01:33]} {[%emt 00:00:08]} Qxd2 {[%clk 00:07:31]} {[%emt
00:00:19]} 23. Rxd2 {[%clk 00:01:37]} {[%emt 00:00:02]} hxg4 {[%clk 00:07:01]}
{[%emt 00:00:35]} 24. Bxd5 {[%clk 00:01:37]} {[%emt 00:00:05]} exd5 {[%clk
00:07:03]} {[%emt 00:00:03]} 25. Rxd5 {[%clk 00:01:34]} {[%emt 00:00:07]} Be6
{[%clk 00:06:24]} {[%emt 00:00:44]} 26. Rg5 {[%clk 00:01:18]} {[%emt 00:00:21]}
Rad8 {[%clk 00:05:31]} {[%emt 00:00:58]} 27. Kc1 {[%clk 00:00:44]} {[%emt
00:00:40]} Kf6 {[%clk 00:04:50]} {[%emt 00:00:45]} 28. Ng3 {[%clk 00:00:39]}
{[%emt 00:00:09]} g6 {[%clk 00:04:53]} {[%emt 00:00:03]} 29. Ne4+ {[%clk
00:00:34]} {[%emt 00:00:10]} Kg7 {[%clk 00:04:54]} {[%emt 00:00:04]} 30. Nc5
{[%clk 00:00:37]} {[%emt 00:00:03]} Bf5 {[%clk 00:04:24]} {[%emt 00:00:34]} 31.
Nxa6 {[%clk 00:00:21]} {[%emt 00:00:22]} Rd4 {[%clk 00:04:07]} {[%emt
00:00:22]} 32. Nc7 {[%clk 00:00:08]} {[%emt 00:00:18]} Rc8 {[%clk 00:04:03]}
{[%emt 00:00:08]} 33. Rxf5 {[%clk 00:00:10]} {[%emt 00:00:04]} gxf5 {[%clk
00:04:03]} {[%emt 00:00:05]} 34. Nb5 {[%clk 00:00:13]} {[%emt 00:00:01]} Rxf4
{[%clk 00:04:00]} {[%emt 00:00:07]} 0-1